bitfinex/quotes_SOLUSD_20240824
["timestamp","ask_amount","ask_price","bid_price","bid_amount"]
[1724500289576,1.58184708,158.07,158.01,9.87600134]
[1724500289780,1.58184708,158.07,157.98,6.58527882]
[1724500289781,16.2639,158.06,157.99,9.87600134]
[1724500289976,8.00209605,158.05,157.99,9.87600134]
[1724500290195,1.58200504,158.04,157.99,9.87600134]
[1724500290405,1.58200504,158.04,157.95,14.34071004]
[1724500290695,1.58200504,158.04,157.97,9.87600134]
[1724500292699,1.58200504,158.04,157.98,45.0]
[1724500292897,1.58200504,158.04,157.99,0.25098]
[1724500294078,1.58200504,158.04,157.99,0.12549]
[1724500294277,7.90980504,158.04,157.92,12.55423416]
[1724500294579,7.90980504,158.04,157.94,9.87600134]
[1724500294580,22.5919,158.03,157.94,9.87600134]
[1724500294784,1.58238617,158.02,157.94,9.87600134]
[1724500295509,1.58238617,158.02,157.95,9.87600134]
[1724500295685,1.58238617,158.02,157.96,45.12549]
[1724500299207,16.2639,158.03,157.97,9.87600134]
[1724500299378,16.2639,158.03,157.99,9.87600134]
[1724500300202,16.2639,158.03,158.01,9.87600134]
[1724500300398,16.2639,158.07,158.0,0.12549]
[1724500300600,16.2639,158.07,158.02,9.87600134]
[1724500301194,16.2639,158.07,158.04,9.87600134]
[1724500301606,16.2639,158.07,158.06,9.87600134]
[1724500301807,6.4201,158.09,158.06,10.12698134]
[1724500302115,6.4201,158.09,158.06,10.00149134]
[1724500303315,16.2639,158.11,158.06,10.00149134]
[1724500303808,17.84527433,158.11,158.05,9.87600134]
[1724500304186,1.58156125,158.1,158.05,9.87600134]
[1724500304393,1.58156125,158.1,158.04,0.12549]
[1724500304613,16.2639,158.11,158.04,1.11119917]
[1724500305000,16.2639,158.11,158.04,0.25098]
[1724500305507,16.2639,158.11,158.04,1.11119233]
[1724500305707,16.2639,158.11,158.04,46.11119233]
[1724500306311,16.2639,158.11,158.05,9.87600134]
[1724500307020,16.2639,158.11,158.06,45.25098]
[1724500308621,1.58137615,158.1,158.06,45.25098]
[1724500309595,1.58137615,158.1,158.05,9.87600134]
[1724500309809,1.58137615,158.1,158.04,0.12549]
[1724500310007,1.58137615,158.1,158.03,9.87600134]
[1724500310196,17.84548279,158.11,158.03,9.87600134]
[1724500311235,1.58158304,158.1,158.04,45.0]
[1724500311930,1.58158304,158.1,158.03,10.00149134]
[1724500312133,11.45758438,158.1,158.04,0.12549]
[1724500318032,1.58158304,158.1,158.04,10.00149134]
[1724500319247,16.2639,158.11,158.06,9.87600134]
[1724500321549,16.2639,158.11,158.06,10.7358512]
[1724500321942,16.2639,158.11,158.07,1.11061665]
[1724500322639,16.2639,158.11,158.07,0.25098]
[1724500327461,16.2639,158.11,158.06,0.25098]
[1724500336483,16.2639,158.11,158.06,10.98645353]
[1724500336660,16.2639,158.11,158.07,45.0]
[1724500336864,16.2639,158.11,158.08,0.25098]
[1724500337280,16.2639,158.11,158.08,1.11021129]
[1724500339085,16.2639,158.11,158.08,0.25098]
[1724500339684,16.2639,158.11,158.07,44.75098]
[1724500339992,1.58136692,158.1,158.03,9.87600134]
[1724500340192,1.58136692,158.1,158.04,20.0]
[1724500340865,17.84530346,158.11,158.04,20.0]
[1724500341066,17.84530346,158.11,158.05,7.9174859]
[1724500341271,17.84530346,158.11,158.06,27.9174859]
[1724500341470,17.84530346,158.11,158.07,7.9174859]
[1724500341687,16.2639,158.11,158.07,7.9174859]
[1724500342074,16.2639,158.11,158.08,0.85959762]
[1724500342284,16.2639,158.11,158.08,45.0]
[1724500344473,16.2639,158.11,158.09,7.91710918]
[1724500344680,16.2639,158.11,158.08,45.0]
[1724500344901,16.2639,158.11,158.09,7.91714578]
[1724500345083,16.2639,158.11,158.08,45.0]
[1724500345285,16.2639,158.11,158.09,7.91710376]
[1724500345501,16.2639,158.11,158.08,45.0]
[1724500345702,16.2639,158.11,158.09,7.91710278]
[1724500345877,16.2639,158.11,158.08,45.0]
[1724500346074,16.2639,158.11,158.09,7.91714578]
[1724500346301,16.2639,158.11,158.1,7.91715022]
[1724500351502,16.2639,158.11,158.08,45.85902583]
[1724500351672,16.2639,158.11,158.1,7.91705711]
[1724500351997,15.658,158.16,158.1,15.83411618]
[1724500352203,15.658,158.16,158.11,55.98511474]
[1724500352500,15.658,158.16,158.11,0.12549]
[1724500352685,15.658,158.16,158.1,7.91705711]
[1724500353279,1.58105374,158.15,158.1,7.91705711]
[1724500354183,27.1150551,158.16,158.1,7.91705711]
[1724500355201,33.4377551,158.16,158.1,7.91705711]
[1724500355386,27.1150551,158.16,158.1,7.91705711]
[1724500356284,9.87600134,158.14,158.1,7.91705711]
[1724500356478,1.58123902,158.13,158.1,7.91705711]
[1724500357694,9.87600134,158.12,158.1,7.91705711]
[1724500358195,9.87600134,158.12,158.06,20.0]
[1724500358499,9.87600134,158.12,158.03,9.87600134]
[1724500358500,1.58146219,158.11,158.03,9.87600134]
[1724500359795,1.58146219,158.11,158.04,65.12549]
[1724500360003,1.58146219,158.11,158.05,0.12549]
[1724500360298,17.23950682,158.1,158.05,0.12549]
[1724500360486,27.11550816,158.1,158.04,65.12549]
[1724500360674,27.11550816,158.1,158.04,20.0]
[1724500360874,27.11550816,158.1,158.02,20.0]
[1724500362286,27.11550816,158.1,157.99,3.17998841]
[1724500362287,9.87600134,158.08,157.99,9.87600134]
[1724500362481,1.58194321,158.07,157.99,9.87600134]
[1724500363003,17.78503118,158.06,157.96,3.24749452]
[1724500363198,17.78503118,158.06,157.95,14.13451891]
[1724500363199,1.58202984,158.06,157.95,14.13451891]
[1724500363385,15.658,158.05,157.96,9.87600134]
[1724500363580,15.658,158.05,157.97,0.86150442]
[1724500364096,1.58217663,158.04,157.96,9.87600134]
[1724500364296,1.58217663,158.04,157.97,20.0]
[1724500364489,15.658,158.05,157.97,20.0]
[1724500364795,17.24017452,158.05,157.97,20.0]
[1724500365005,15.658,158.05,157.98,45.25098]
[1724500365187,15.658,158.05,157.99,20.0]
[1724500365706,17.24017463,158.05,157.99,20.0]
[1724500367206,1.58217455,158.04,157.99,20.0]
[1724500367997,17.24017457,158.05,157.99,20.0]
[1724500368202,1.58217459,158.04,157.99,20.0]
[1724500368987,1.58217459,158.04,157.98,45.25098]
[1724500369196,1.58217459,158.04,157.99,20.0]
[1724500369398,1.58217459,158.04,157.98,20.25098]
[1724500371933,17.24017262,158.05,157.98,20.25098]
[1724500373510,17.24017143,158.05,157.98,20.25098]
[1724500374234,1.58217059,158.04,157.98,20.25098]
[1724500380622,1.58217059,158.04,157.98,20.0]
[1724500381821,15.658,158.05,157.98,20.0]
[1724500382326,1.35344815,158.04,157.98,20.0]
[1724500382540,1.35344815,158.04,157.97,45.0]
[1724500382726,11.22944949,158.04,157.97,45.0]
[1724500383934,22.6962,158.03,157.97,45.0]
[1724500384135,1.58237865,158.02,157.96,45.12549]
[1724500384339,1.58238201,158.01,157.97,20.0]
[1724500384534,1.58238201,158.01,157.94,9.87600134]
[1724500384843,1.58238201,158.01,157.95,20.0]
[1724500385230,1.58248638,158.02,157.95,20.0]
[1724500385424,1.58245436,158.01,157.95,20.0]
[1724500386330,1.58245455,158.02,157.95,20.0]
[1724500386529,1.58245455,158.01,157.95,20.0]
[1724500386724,24.27865433,158.03,157.96,54.87600134]
[1724500386932,22.6962,158.03,157.98,9.87600134]
[1724500389244,1.58231271,158.02,157.97,0.25098]
[1724500389553,1.58231271,158.02,157.97,20.25098]
[1724500395949,1.58231271,158.02,157.97,0.25098]
[1724500396151,1.58231271,158.02,157.97,20.25098]
[1724500396623,22.6962,158.03,157.97,20.0]
[1724500396624,1.58236559,158.01,157.97,20.0]
[1724500397031,1.58236559,158.01,157.95,20.0]
[1724500397238,1.58236559,158.01,157.94,9.87600134]
[1724500397460,1.58236559,158.01,157.95,20.0]
[1724500397639,16.1625,158.0,157.91,17.41395509]
[1724500397926,16.1625,158.0,157.93,9.87600134]
[1724500398555,16.1625,158.0,157.95,9.87600134]
[1724500398727,16.1625,158.0,157.96,0.86212623]
[1724500398927,16.1625,158.0,157.97,9.87600134]
[1724500401383,16.1625,158.0,157.96,0.12549]
[1724500402064,16.1625,158.0,157.94,9.87600134]
[1724500402065,16.1625,158.0,157.95,65.25098]
[1724500402948,16.1625,158.0,157.95,75.12698134]
[1724500403339,16.1625,158.0,157.96,0.86198517]
[1724500404737,16.1625,158.0,157.95,75.12698134]
[1724500406454,16.1625,158.0,157.95,65.25098]
[1724500409464,16.1625,158.0,157.96,0.86217455]
[1724500409758,16.1625,158.0,157.95,65.25098]
[1724500411047,16.1625,158.0,157.96,0.86217372]
[1724500412649,16.1625,158.0,157.95,20.12549]
[1724500412855,1.58245303,157.99,157.91,20.0]
[1724500413051,1.58245303,157.99,157.92,55.12698134]
[1724500413250,6.5705,157.97,157.9,7.40037042]
[1724500413448,6.5705,157.97,157.91,0.86312326]
[1724500413755,6.5705,157.97,157.9,9.87600134]
[1724500414477,1.582892,157.96,157.9,9.87600134]
[1724500414649,6.5705,157.97,157.91,0.86326105]
[1724500415165,6.5705,157.97,157.9,9.87600134]
[1724500415369,6.5705,157.97,157.91,20.0]
[1724500417374,6.5705,157.97,157.91,20.86325845]
[1724500418147,6.5705,157.97,157.92,9.87600134]
[1724500418778,6.5705,157.97,157.93,0.98852182]
[1724500419284,16.1625,158.0,157.94,9.87600134]
[1724500419452,16.1625,158.0,157.96,9.87600134]
[1724500419652,16.1625,158.0,157.96,10.73816937]
[1724500420182,16.1625,158.0,157.96,9.87600134]
[1724500420476,16.1625,158.0,157.98,9.87600134]
[1724500421580,16.1625,158.0,157.95,45.12549]
[1724500421765,16.1625,158.0,157.96,29.87600134]
[1724500421952,16.1625,158.0,157.97,0.86205033]
[1724500422147,16.1625,158.0,157.97,45.86205033]
[1724500422348,16.1625,158.0,157.97,45.0]
[1724500422577,16.1625,158.0,157.96,29.87600134]
[1724500426866,16.1625,158.0,157.96,20.0]
[1724500427072,16.1625,158.0,157.95,10.12698134]
[1724500427283,16.1625,158.0,157.96,65.0]
[1724500427667,17.74488383,158.0,157.96,20.0]
[1724500427872,17.74488383,158.0,157.93,9.87600134]
[1724500428065,16.1625,158.0,157.94,20.12549]
[1724500428586,16.1625,158.0,157.94,20.0]
[1724500428887,17.74520524,158.0,157.93,9.87600134]
[1724500429183,17.74520524,158.0,157.94,20.0]
[1724500429782,17.74520524,158.0,157.92,29.87600134]
[1724500429963,17.74520524,158.0,157.93,45.25098]
[1724500430288,17.74520524,158.0,157.94,20.0]
[1724500432301,17.74520524,158.0,157.9,9.87600134]
[1724500432302,9.87600134,157.99,157.9,9.87600134]
[1724500432502,6.2979,157.97,157.88,12.4849425]
[1724500432694,6.2979,157.97,157.89,9.87600134]
[1724500432997,1.58293304,157.96,157.89,9.87600134]
[1724500433295,16.6616,157.95,157.88,22.74849481]
[1724500433964,16.6616,157.95,157.89,45.25098]
[1724500434167,16.6616,157.95,157.9,20.0]
[1724500438498,16.6616,157.95,157.9,29.87600134]
[1724500438703,16.6616,157.95,157.9,20.0]
[1724500439779,16.6616,157.95,157.89,55.12698134]
[1724500440077,16.6616,157.95,157.9,20.0]
[1724500446590,16.6616,157.95,157.89,55.12698134]
[1724500447406,16.6616,157.95,157.89,45.25098]
[1724500447603,16.6616,157.95,157.89,55.12698134]
[1724500449011,16.6616,157.95,157.89,45.25098]
[1724500449012,1.58295997,157.94,157.89,45.25098]
[1724500458998,1.58295997,157.94,157.85,9.82665193]
[1724500459225,1.58295997,157.94,157.86,20.0]
[1724500459226,16.33140134,157.93,157.86,20.0]
[1724500459529,24.95190134,157.91,157.81,6.59853962]
[1724500459718,8.03908658,157.9,157.81,6.59853962]
[1724500459906,1.58368089,157.89,157.81,16.47454096]
[1724500460103,1.58368089,157.89,157.81,9.87600134]
[1724500462258,1.58368089,157.89,157.82,20.0]
[1724500463754,15.0759,157.88,157.82,20.0]
[1724500463932,1.58373976,157.87,157.82,20.0]
[1724500465352,15.0759,157.88,157.82,20.0]
[1724500465659,15.0759,157.88,157.85,9.87600134]
[1724500465842,15.0759,157.88,157.87,9.87600134]
[1724500468039,16.552,157.92,157.87,9.87600134]
[1724500468244,16.552,157.92,157.89,9.87600134]
[1724500468440,16.552,157.92,157.87,10.00149134]
[1724500468664,18.13524815,157.92,157.87,10.00149134]
[1724500469658,16.552,157.92,157.87,10.00149134]
[1724500471436,16.552,157.92,157.89,9.87600134]
[1724500475865,16.552,157.92,157.9,0.86379867]
[1724500476557,16.552,157.92,157.89,9.87600134]
[1724500476861,16.552,157.96,157.89,9.87600134]
[1724500478164,1.58310733,157.95,157.89,9.87600134]
[1724500479360,18.13510942,157.96,157.89,9.87600134]
[1724500479735,1.58309841,157.95,157.89,9.87600134]
[1724500479967,18.13509883,157.96,157.89,9.87600134]
[1724500480749,1.58309682,157.95,157.89,9.87600134]
[1724500490375,1.58309682,157.95,157.87,0.12549]
[1724500490571,1.58309682,157.95,157.89,9.87600134]
[1724500490786,1.58309682,157.95,157.88,0.12549]
[1724500491075,1.58309682,157.95,157.87,9.87600134]
[1724500491277,1.58309682,157.95,157.88,45.25098]
[1724500495684,1.58309682,157.95,157.88,55.12698134]
[1724500512291,16.552,157.96,157.92,9.87600134]
[1724500514205,1.58301591,157.96,157.9,9.87600134]
[1724500515104,1.58301591,157.96,157.88,45.12549]
[1724500515407,1.58301591,157.96,157.9,9.87600134]
[1724500516101,6.3299,157.98,157.9,9.87600134]
[1724500516513,18.6851,158.0,157.92,9.87600134]
[1724500516720,18.6851,158.0,157.94,9.87600134]
[1724500517217,1.58269863,157.99,157.94,9.87600134]
[1724500518909,18.6851,158.0,157.94,9.87600134]
[1724500520093,18.6851,158.0,157.95,0.86265399]
[1724500522124,20.26771221,158.0,157.94,9.87600134]
[1724500523923,18.6851,158.0,157.91,0.98804381]
[1724500524112,18.6851,158.0,157.92,10.12698134]
[1724500524426,18.6851,158.0,157.94,9.87600134]
[1724500525728,18.6851,158.0,157.95,0.86255126]
[1724500527529,18.6851,158.0,157.94,9.87600134]
[1724500532649,3.0,158.0,157.98,9.87600134]
[1724500533016,3.0,158.0,157.99,0.8614174]
[1724500533515,3.0,158.0,157.99,46.1123974]
[1724500533709,3.0,158.0,157.99,66.1123974]
[1724500537052,3.0,158.0,157.99,65.25098]
[1724500540743,3.0,158.0,157.99,66.11139515]
[1724500541138,15.2792,158.08,157.99,66.11139515]
[1724500541337,15.2792,158.08,158.03,9.87600134]
[1724500541536,15.2792,158.08,158.04,0.98557658]
[1724500541943,15.2792,158.08,158.04,0.12549]
[1724500542739,15.2792,158.08,158.04,0.9856719]
[1724500546335,15.2792,158.08,158.04,45.9856719]
[1724500547253,15.2792,158.08,158.04,45.12549]
[1724500548244,15.2792,158.08,158.04,0.12549]
[1724500553058,15.2792,158.08,158.04,0.98566805]
[1724500553258,16.5316,158.12,158.05,9.87600134]
[1724500553567,16.5316,158.12,158.06,0.85972926]
[1724500556368,18.11304312,158.12,158.04,45.25098]
[1724500556672,9.87600134,158.11,158.04,0.12549]
[1724500556853,1.58162312,158.1,158.04,0.12549]
[1724500557363,1.58162312,158.1,158.03,0.12549]
[1724500558137,9.87600134,158.09,158.03,0.12549]
[1724500558364,9.87600134,158.09,158.03,45.25098]
[1724500559863,1.5816225,158.08,158.03,45.25098]
[1724500560046,11.45762362,158.09,158.03,45.25098]
[1724500560662,11.45762362,158.09,158.0,20.0]
[1724500560878,26.40760134,158.07,158.0,20.0]
[1724500561173,1.58194244,158.06,157.98,20.0]
[1724500561747,26.40760134,158.07,157.99,9.87600134]
[1724500561948,26.40760134,158.07,158.0,20.0]
[1724500562147,27.98949204,158.07,158.0,20.0]
[1724500562765,27.98949204,158.07,158.01,45.25098]
[1724500562766,1.58188934,158.06,158.01,45.25098]
[1724500563272,1.58188934,158.06,158.0,20.0]
[1724500570552,1.58188934,158.06,157.99,0.12549]
[1724500570870,1.58188934,158.06,158.0,0.12549]
[1724500571056,1.58188934,158.06,158.0,0.25098]
[1724500573871,1.58188934,158.06,157.99,65.0]
[1724500573872,9.87600134,158.01,157.94,3.25356635]
[1724500574090,9.87600134,158.01,157.89,386.9]
[1724500574091,9.87600134,157.95,157.84,268.8453]
[1724500574456,1.58281146,157.96,157.85,6.60077017]
[1724500574661,1.58281146,157.96,157.87,9.87600134]
[1724500575079,1.58300299,157.95,157.85,9.87600134]
[1724500575376,15.8421,157.94,157.86,9.87600134]
[1724500575579,11.45923447,157.93,157.84,17.88832057]
[1724500575780,9.87600134,157.91,157.84,8.01231923]
[1724500576064,1.58343376,157.9,157.82,9.87600134]
[1724500576381,1.58343376,157.9,157.81,17.88832057]
[1724500577486,1.58343376,157.9,157.82,9.87600134]
[1724500577788,16.28910134,157.91,157.82,9.87600134]
[1724500577789,1.58352568,157.89,157.82,9.87600134]
[1724500578268,11.45952702,157.89,157.8,9.87600134]
[1724500579281,11.45952702,157.89,157.81,20.0]
[1724500580061,11.45952702,157.89,157.8,9.87600134]
[1724500580589,11.45952702,157.89,157.81,0.25098]
[1724500581380,11.45952702,157.89,157.81,20.25098]
[1724500581981,11.45952702,157.89,157.81,0.25098]
[1724500582792,11.45952702,157.89,157.81,20.25098]
[1724500583393,15.8421,157.88,157.81,20.25098]
[1724500583571,1.583804,157.87,157.81,20.25098]
[1724500587268,6.2118,157.86,157.76,8.01231923]
[1724500587474,11.4600207,157.85,157.76,9.87600134]
[1724500587704,11.4600207,157.85,157.75,9.87600134]
[1724500587995,15.4419,157.82,157.73,16.46656699]
[1724500588191,11.46035594,157.81,157.7,394.91231923]
[1724500588393,11.46035594,157.81,157.72,9.87600134]
[1724500588698,11.46035594,157.81,157.7,8.01231923]
[1724500588867,6.2118,157.8,157.7,9.87600134]
[1724500589076,1.58464932,157.79,157.7,9.87600134]
[1724500589588,6.2118,157.8,157.74,9.87600134]
[1724500589905,15.4419,157.82,157.78,9.87600134]
[1724500590613,15.4419,157.82,157.79,0.86614221]
[1724500591997,15.4419,157.87,157.8,9.87600134]
[1724500592205,15.4419,157.87,157.79,0.86614221]
[1724500592206,15.4419,157.87,157.82,9.87600134]
[1724500592385,15.4419,157.87,157.81,0.25098]
[1724500593690,15.4419,157.87,157.81,10.12698134]
[1724500593890,15.4419,157.87,157.82,0.86544262]
[1724500594291,15.4419,157.87,157.81,10.12698134]
[1724500595400,15.4419,157.87,157.83,9.87600134]
[1724500595599,15.4419,157.87,157.84,0.99069081]
[1724500595799,15.4419,157.87,157.85,9.87600134]
[1724500596013,15.4419,157.91,157.86,0.86481065]
[1724500596599,15.4419,157.91,157.85,9.87600134]
[1724500604603,15.4419,157.91,157.86,1.11549936]
[1724500605120,16.0147,157.95,157.89,9.87600134]
[1724500605429,16.0147,157.95,157.9,0.86353666]
[1724500605635,16.0147,157.95,157.88,10.00149134]
[1724500605814,16.0147,157.95,157.89,0.12549]
[1724500606116,17.59773071,157.95,157.88,0.12549]
[1724500606322,17.59773071,157.95,157.87,10.12698134]
[1724500612922,17.59773071,157.95,157.87,0.25098]
[1724500613125,27.47373205,157.95,157.87,10.12698134]
[1724500613541,27.47373205,157.95,157.87,0.25098]
[1724500613723,27.47373205,157.95,157.87,10.12698134]
[1724500619649,12.5385,157.97,157.87,10.12698134]
[1724500619650,6.208,157.97,157.89,9.87600134]
[1724500619848,6.208,157.97,157.9,0.25098]
[1724500620028,7.7909275,157.97,157.9,0.25098]
[1724500620746,9.87600134,157.94,157.86,9.87600134]
[1724500620943,9.87600134,157.94,157.87,20.12549]
[1724500621147,9.87600134,157.96,157.88,0.12549]
[1724500621342,1.58312927,157.95,157.88,0.12549]
[1724500623734,1.58312927,157.95,157.88,20.12549]
[1724500623936,1.58312927,157.95,157.89,0.12549]
[1724500629654,1.58312927,157.95,157.88,0.25098]
[1724500630762,9.87600134,157.94,157.87,20.0]
[1724500630964,9.87600134,157.94,157.85,20.0]
[1724500631166,1.58326071,157.93,157.85,20.0]
[1724500631346,9.87600134,157.94,157.85,20.0]
[1724500631542,9.87600134,157.94,157.86,10.74011037]
[1724500631743,9.87600134,157.96,157.87,20.0]
[1724500631948,1.58312766,157.95,157.88,0.25098]
[1724500632146,9.87600134,157.96,157.88,0.25098]
[1724500632751,11.22858887,157.96,157.88,0.25098]
[1724500633072,16.0147,157.99,157.9,9.87600134]
[1724500633360,16.0147,157.99,157.91,1.11405051]
[1724500634957,6.1908,158.01,157.92,9.87600134]
[1724500635162,9.87600134,158.02,157.93,0.25098]
[1724500635459,1.58253823,158.01,157.93,0.25098]
[1724500636073,1.58253823,158.01,157.93,45.25098]
[1724500636259,27.91123823,158.01,157.93,45.25098]
[1724500638663,21.58253823,158.01,157.93,45.25098]
[1724500638864,22.0362,158.03,157.94,10.73838011]
[1724500639169,1.5825165,158.02,157.95,45.12549]
[1724500639345,1.58251908,158.01,157.95,45.12549]
[1724500640069,9.87600134,158.0,157.93,0.12549]
[1724500640265,1.58263822,157.99,157.93,65.25098]
[1724500640470,6.3283,158.02,157.94,9.87600134]
[1724500640843,25.58420134,158.03,157.94,9.87600134]
[1724500641052,1.58262726,158.02,157.94,9.87600134]
[1724500641263,31.91210134,158.03,157.94,9.87600134]
[1724500641645,9.87600134,158.01,157.93,45.25098]
[1724500641848,1.58262712,158.0,157.93,45.25098]
[1724500643182,9.87600134,157.99,157.93,45.25098]
[1724500643363,1.58269715,157.98,157.93,45.25098]
[1724500650568,1.58269715,157.98,157.93,0.25098]
[1724500651467,1.58269484,157.99,157.93,0.25098]
[1724500655879,1.58264311,158.0,157.93,0.25098]
[1724500668832,11.45864445,158.0,157.93,0.25098]
[1724500673924,1.58264311,158.0,157.93,0.25098]
[1724500675007,16.20430134,158.02,157.93,10.12698134]
[1724500675204,16.20430134,158.02,157.94,45.0]
[1724500675520,16.20430134,158.02,157.95,0.12549]
[1724500677517,36.97625671,158.07,157.95,33.37283457]
[1724500677695,9.87600134,158.05,157.97,9.87600134]
[1724500677894,9.87600134,158.05,157.98,0.86163923]
[1724500677895,6.3272,158.05,157.98,0.86163923]
[1724500678310,6.3272,158.05,157.98,45.86163923]
[1724500678615,6.3268,158.06,157.99,0.86150078]
[1724500679189,0.1719682,158.07,158.0,0.25098]
[1724500679394,0.1719682,158.07,158.0,45.25098]
[1724500679813,1.75392434,158.07,158.0,45.25098]
[1724500680416,9.87600134,158.04,157.95,22.509]
[1724500680621,1.58216903,158.03,157.96,65.25098]
[1724500680823,9.87600134,158.02,157.95,22.509]
[1724500681127,9.87600134,157.98,157.9,22.509]
[1724500682025,1.35308797,157.97,157.9,22.509]
[1724500682209,9.87600134,157.98,157.9,22.509]
[1724500682396,1.58275412,157.97,157.9,22.509]
[1724500683906,1.58275412,157.97,157.91,20.0]
[1724500688424,1.58275412,157.97,157.9,22.63449]
[1724500688626,1.58275412,157.97,157.91,45.12549]
[1724500688832,9.87600134,157.96,157.91,45.12549]
[1724500689039,1.58292292,157.95,157.91,45.12549]
[1724500689328,1.58292292,157.95,157.91,45.0]
[1724500689719,1.58292292,157.95,157.9,16.3961]
[1724500689919,1.58292292,157.95,157.86,6.6274]
[1724500689920,9.87600134,157.94,157.86,32.07990134]
[1724500690118,1.58315256,157.93,157.86,22.2039]
[1724500690547,16.20710134,157.95,157.86,32.07990134]
[1724500690726,1.58323206,157.94,157.86,32.07990134]
[1724500690916,1.58323206,157.94,157.86,22.2039]
[1724500691930,9.87600134,157.93,157.86,22.2039]
[1724500692808,1.58345169,157.92,157.86,22.2039]
[1724500693605,9.87600134,157.93,157.86,22.2039]
[1724500694114,11.45930547,157.94,157.87,45.25098]
[1724500694935,9.87600134,157.94,157.88,0.86417636]
[1724500696725,28.01278894,157.94,157.87,45.25098]
[1724500703951,16.5535,157.94,157.87,45.25098]
[1724500706647,16.5535,157.94,157.88,0.86376023]
[1724500706846,16.5535,157.94,157.89,0.12549]
[1724500710746,9.87600134,157.97,157.89,1.11473817]
[1724500711048,11.45899383,157.97,157.89,45.25098]
[1724500712340,9.87600134,157.95,157.89,45.25098]
[1724500712547,7.91329249,157.97,157.82,22.2039]
[1724500712548,9.87600134,157.93,157.82,22.2039]
[1724500712742,1.58323464,157.92,157.84,9.87600134]
[1724500712946,1.58323464,157.92,157.85,20.12549]
[1724500713143,1.58323464,157.92,157.86,0.12549]
[1724500713341,1.58323464,157.92,157.83,20.0]
[1724500713733,1.58323464,157.92,157.82,22.2039]
[1724500714054,1.58323464,157.92,157.83,9.87600134]
[1724500714554,1.58323464,157.92,157.82,22.2039]
[1724500714742,1.58323464,157.92,157.83,10.12698134]
[1724500715051,1.58323464,157.92,157.83,0.25098]
[1724500715235,1.58323464,157.92,157.83,65.25098]
[1724500716256,9.87600134,157.91,157.83,65.25098]
[1724500716550,1.58361828,157.9,157.83,65.25098]
[1724500716949,9.87600134,157.89,157.83,45.25098]
[1724500717144,9.87600134,157.89,157.78,22.8355]
[1724500717145,17.77848608,157.88,157.78,22.8355]
[1724500717350,17.77848608,157.88,157.8,9.87600134]
[1724500718455,17.77848608,157.88,157.79,9.87600134]
[1724500719351,24.32818608,157.88,157.8,20.0]
[1724500719662,24.32818608,157.88,157.79,29.87600134]
[1724500719957,24.32818608,157.88,157.8,45.25098]
[1724500720156,24.32818608,157.88,157.81,20.0]
[1724500720331,24.32818608,157.88,157.82,45.0]
[1724500720530,9.87600134,157.85,157.73,270.3016]
[1724500720754,9.87600134,157.85,157.77,45.25098]
[1724500721348,1.58392626,157.86,157.77,45.25098]
[1724500721532,1.58392626,157.86,157.78,9.87600134]
[1724500721732,1.58392626,157.86,157.79,45.25098]
[1724500722160,1.58392669,157.87,157.79,45.25098]
[1724500729663,9.87600134,157.86,157.79,45.25098]
[1724500729835,1.58407406,157.85,157.79,0.25098]
[1724500730260,1.58407406,157.85,157.77,9.87600134]
[1724500730565,1.58407406,157.85,157.78,20.0]
[1724500730744,1.58407406,157.85,157.75,9.87600134]
[1724500730942,1.58407406,157.85,157.76,20.0]
[1724500731669,1.58407406,157.85,157.77,45.25098]
[1724500732272,7.91927406,157.85,157.77,45.25098]
[1724500732871,15.9161,157.84,157.77,45.25098]
[1724500734972,15.9161,157.84,157.78,0.86641432]
[1724500736676,15.9161,157.84,157.79,0.25098]
[1724500737266,15.9161,157.84,157.78,0.25098]
[1724500739267,1.58410273,157.83,157.78,0.25098]
[1724500739453,1.58410273,157.83,157.77,45.0]
[1724500739948,17.50032107,157.84,157.77,45.0]
[1724500742391,27.37632241,157.84,157.77,45.0]
[1724500743080,6.3039,157.83,157.77,45.0]
[1724500744985,11.46030292,157.82,157.77,45.0]
[1724500745174,11.46030292,157.82,157.73,9.87600134]
[1724500745370,11.46030292,157.82,157.74,65.25098]
[1724500745959,1.58430158,157.82,157.74,65.25098]
[1724500746150,16.17990134,157.83,157.74,65.25098]